fUST/lending_fUST_20240423
["ID","MTS","AMOUNT","RATE_DAILY","PERIOD"]
[323243968,1713839441870,-154.82968734,0.00025,2]
[323243969,1713839441881,-1258.62146874,0.00025079,30]
[323243970,1713839441892,-470.82588717,0.0002518,2]
[323243971,1713839441902,-75079.24720059,0.00025191,2]
[323243972,1713839441913,-5000.0,0.00025192,2]
[323243973,1713839441923,-301.36887217,0.00025201,2]
[323243974,1713839441935,-473.9053496,0.00025202,2]
[323243975,1713839441945,-155.05820709,0.00025202,2]
[323243984,1713839442090,-353.56955338,0.00025202,2]
[323243986,1713839442104,-155.32129891,0.00025203,2]
[323243988,1713839442114,-167.61837529,0.00025203,2]
[323243990,1713839442123,-309.23431941,0.00025203,2]
[323243992,1713839442131,-2907.57785318,0.00025203,2]
[323243994,1713839442140,-1460.87290675,0.00025203,2]
[323243996,1713839442148,-283.61689128,0.00025204,2]
[323243998,1713839442158,-199.99436328,0.00025204,2]
[323244000,1713839442167,-1093.81756696,0.00025204,2]
[323244002,1713839442176,-500.0,0.00025205,2]
[323244004,1713839442185,-500.0,0.00025205,2]
[323244006,1713839442194,-500.0,0.00025205,2]
[323244008,1713839442203,-508.56,0.00025205,2]
[323244010,1713839442212,-500.0,0.00025205,2]
[323244011,1713839442221,-500.0,0.00025205,2]
[323244013,1713839442230,-500.0,0.00025205,2]
[323244015,1713839442239,-500.0,0.00025205,2]
[323244017,1713839442249,-500.0,0.00025205,2]
[323244019,1713839442259,-500.0,0.00025205,2]
[323244021,1713839442268,-500.0,0.00025205,2]
[323244023,1713839442278,-500.0,0.00025205,2]
[323244025,1713839442287,-425.62500222,0.00025205,2]
[323244027,1713839442295,-500.0,0.00025205,2]
[323244029,1713839442304,-1094.07,0.00025205,2]
[323244031,1713839442313,-580.75,0.00025205,2]
[323244033,1713839442321,-500.0,0.00025205,2]
[323244035,1713839442330,-500.0,0.00025205,2]
[323244037,1713839442339,-495.42798901,0.00025205,2]
[323244039,1713839442348,-500.0,0.00025205,2]
[323244041,1713839442357,-968.74,0.00025205,2]
[323244043,1713839442366,-500.0,0.00025205,2]
[323244045,1713839442375,-500.0,0.00025205,2]
[323244047,1713839442384,-610.8980254,0.00025205,2]
[323244049,1713839442392,-620.3,0.00025205,2]
[323244050,1713839442401,-500.0,0.00025205,2]
[323244052,1713839442411,-621.56,0.00025205,2]
[323244054,1713839442420,-1041.4,0.00025205,2]
[323244056,1713839442429,-500.0,0.00025205,2]
[323244058,1713839442439,-500.0,0.00025205,2]
[323244060,1713839442447,-524.21734633,0.00025205,2]
[323244062,1713839442456,-500.0,0.00025205,2]
[323244064,1713839442465,-612.02,0.00025205,2]
[323244066,1713839442475,-612.75,0.00025205,2]
[323244068,1713839442484,-500.0,0.00025205,2]
[323244070,1713839442493,-500.0,0.00025205,2]
[323244072,1713839442503,-539.37,0.00025205,2]
[323244074,1713839442514,-1802.65,0.00025205,2]
[323244077,1713839442524,-500.0,0.00025205,2]
[323244079,1713839442533,-500.0,0.00025205,2]
[323244080,1713839442543,-500.0,0.00025205,2]
[323244082,1713839442553,-500.0,0.00025205,2]
[323244084,1713839442562,-500.0,0.00025205,2]
[323244086,1713839442572,-549.8,0.00025205,2]
[323244088,1713839442581,-521.89,0.00025205,2]
[323244090,1713839442591,-550.03,0.00025205,2]
[323244092,1713839442604,-500.0,0.00025205,2]
[323244094,1713839442614,-500.0,0.00025205,2]
[323244096,1713839442623,-500.0,0.00025205,2]
[323244098,1713839442633,-500.0,0.00025205,2]
[323244100,1713839442644,-478.80416127,0.00025205,2]
[323244102,1713839442654,-500.0,0.00025205,2]
[323244104,1713839442663,-629.55,0.00025205,2]
[323244106,1713839442674,-545.56,0.00025205,2]
[323244108,1713839442683,-500.0,0.00025205,2]
[323244110,1713839442693,-1417.58,0.00025205,2]
[323244113,1713839442702,-500.0,0.00025205,2]
[323244115,1713839442711,-1815.54,0.00025205,2]
[323244117,1713839442721,-500.0,0.00025205,2]
[323244119,1713839442730,-1763.16,0.00025205,2]
[323244120,1713839442740,-503.951946,0.00025205,2]
[323244122,1713839442751,-497.80400615,0.00025205,2]
[323244124,1713839442762,-500.0,0.00025205,2]
[323244126,1713839442772,-500.0,0.00025205,2]
[323244129,1713839442781,-2362.86,0.00025205,2]
[323244130,1713839442790,-584.48612979,0.00025205,2]
[323244132,1713839442799,-500.0,0.00025205,2]
[323244134,1713839442809,-643.4,0.00025205,2]
[323244136,1713839442818,-647.19054347,0.00025205,2]
[323244138,1713839442826,-3374.35,0.00025205,2]
[323244140,1713839442835,-1027.25,0.00025205,2]
[323244142,1713839442843,-163.91085509,0.00025205,2]
[323244144,1713839442852,-500.0,0.00025205,2]
[323244146,1713839442861,-534.71,0.00025205,2]
[323244148,1713839442870,-500.0,0.00025205,2]
[323244151,1713839442880,-500.0,0.00025205,2]
[323244152,1713839442889,-500.0,0.00025205,2]
[323244155,1713839442898,-583.45,0.00025205,2]
[323244158,1713839442908,-500.0,0.00025205,2]
[323244161,1713839442916,-1572.23,0.00025205,2]
[323244164,1713839442925,-500.0,0.00025205,2]
[323244167,1713839442934,-3148.3,0.00025205,2]
[323244170,1713839442943,-1773.12,0.00025205,2]
[323244173,1713839442952,-500.0,0.00025205,2]
[323244176,1713839442961,-8801.41,0.00025205,2]
[323244178,1713839442970,-771.77,0.00025205,2]
[323244180,1713839442979,-778.86,0.00025205,2]
[323244182,1713839442988,-583.2022895,0.00025205,2]
[323244184,1713839442998,-2087.97,0.00025205,2]
[323244186,1713839443007,-587.69819039,0.00025205,2]
[323244188,1713839443016,-514.65,0.00025205,2]
[323244190,1713839443025,-500.0,0.00025479,2]
[323244192,1713839443034,-500.0,0.00025479,2]
[323244194,1713839443043,-500.0,0.00025479,2]
[323244196,1713839443052,-508.56,0.00025479,2]
[323244198,1713839443061,-500.0,0.00025479,2]
[323244201,1713839443070,-537.56561709,0.00025479,2]
[323244203,1713839443079,-500.0,0.00025479,2]
[323244205,1713839443088,-500.0,0.00025479,2]
[323244207,1713839443097,-500.0,0.00025479,2]
[323244209,1713839443106,-500.0,0.00025479,2]
[323244211,1713839443115,-500.0,0.00025479,2]
[323244214,1713839443124,-500.0,0.00025479,2]
[323244217,1713839443133,-500.0,0.00025479,2]
[323244220,1713839443142,-1094.07,0.00025479,2]
[323244222,1713839443151,-580.75,0.00025479,2]
[323244224,1713839443160,-500.0,0.00025479,2]
[323244226,1713839443169,-500.0,0.00025479,2]
[323244229,1713839443178,-500.0,0.00025479,2]
[323244231,1713839443187,-968.74,0.00025479,2]
[323244233,1713839443196,-500.0,0.00025479,2]
[323244235,1713839443205,-500.0,0.00025479,2]
[323244237,1713839443214,-620.3,0.00025479,2]
[323244239,1713839443223,-500.0,0.00025479,2]
[323244241,1713839443232,-621.56,0.00025479,2]
[323244243,1713839443241,-1041.4,0.00025479,2]
[323244244,1713839443251,-500.0,0.00025479,2]
[323244246,1713839443261,-206.59761713,0.00025479,2]
[323244249,1713839443271,-500.0,0.00025479,2]
[323244251,1713839443280,-612.02,0.00025479,2]
[323244253,1713839443290,-612.75,0.00025479,2]
[323244254,1713839443299,-500.0,0.00025479,2]
[323244256,1713839443308,-500.0,0.00025479,2]
[323244258,1713839443317,-539.37,0.00025479,2]
[323244261,1713839443327,-1802.65,0.00025479,2]
[323244263,1713839443336,-500.0,0.00025479,2]
[323244265,1713839443345,-500.0,0.00025479,2]
[323244267,1713839443354,-500.0,0.00025479,2]
[323244269,1713839443363,-500.0,0.00025479,2]
[323244270,1713839443372,-500.0,0.00025479,2]
[323244272,1713839443381,-549.8,0.00025479,2]
[323244274,1713839443390,-521.89,0.00025479,2]
[323244276,1713839443399,-550.03,0.00025479,2]
[323244278,1713839443408,-492.50350801,0.00025479,2]
[323244280,1713839443417,-633.38304819,0.00025479,2]
[323244282,1713839443426,-500.0,0.00025479,2]
[323244284,1713839443435,-500.0,0.00025479,2]
[323244286,1713839443444,-500.0,0.00025479,2]
[323244288,1713839443453,-629.55,0.00025479,2]
[323244290,1713839443462,-545.56,0.00025479,2]
[323244292,1713839443471,-375.81737596,0.00025479,2]
[323244294,1713839443480,-1417.58,0.00025479,2]
[323244296,1713839443489,-500.0,0.00025479,2]
[323244298,1713839443499,-1815.54,0.00025479,2]
[323244300,1713839443509,-504.13362956,0.00025479,2]
[323244302,1713839443518,-1763.16,0.00025479,2]
[323244304,1713839443527,-500.0,0.00025479,2]
[323244306,1713839443536,-500.0,0.00025479,2]
[323244308,1713839443545,-2362.86,0.00025479,2]
[323244310,1713839443554,-500.0,0.00025479,2]
[323244312,1713839443563,-643.4,0.00025479,2]
[323244314,1713839443571,-3374.35,0.00025479,2]
[323244316,1713839443581,-1027.25,0.00025479,2]
[323244318,1713839443590,-500.0,0.00025479,2]
[323244320,1713839443599,-534.71,0.00025479,2]
[323244322,1713839443608,-503.09762238,0.00025479,2]
[323244324,1713839443617,-500.0,0.00025479,2]
[323244326,1713839443626,-500.0,0.00025479,2]
[323244328,1713839443635,-583.45,0.00025479,2]
[323244330,1713839443648,-359.10810611,0.00025479,2]
[323244332,1713839443657,-1572.23,0.00025479,2]
[323244334,1713839443666,-500.0,0.00025479,2]
[323244336,1713839443675,-3148.3,0.00025479,2]
[323244338,1713839443685,-1773.12,0.00025479,2]
[323244340,1713839443694,-500.0,0.00025479,2]
[323244342,1713839443703,-8801.41,0.00025479,2]
[323244344,1713839443712,-771.77,0.00025479,2]
[323244346,1713839443723,-778.86,0.00025479,2]
[323244348,1713839443732,-2087.97,0.00025479,2]
[323244350,1713839443742,-514.65,0.00025479,2]
[323244352,1713839443751,-620.00003153,0.00025735,2]
[323244355,1713839443761,-500.0,0.00025753,2]
[323244357,1713839443771,-500.0,0.00025753,2]
[323244359,1713839443781,-500.0,0.00025753,2]
[323244361,1713839443790,-508.56,0.00025753,2]
[323244363,1713839443800,-500.0,0.00025753,2]
[323244365,1713839443809,-500.0,0.00025753,2]
[323244367,1713839443818,-500.0,0.00025753,2]
[323244369,1713839443827,-500.0,0.00025753,2]
[323244371,1713839443836,-500.0,0.00025753,2]
[323244373,1713839443845,-500.0,0.00025753,2]
[323244375,1713839443854,-500.0,0.00025753,2]
[323244377,1713839443863,-500.0,0.00025753,2]
[323244379,1713839443873,-1094.07,0.00025753,2]
[323244381,1713839443882,-580.75,0.00025753,2]
[323244382,1713839443891,-500.0,0.00025753,2]
[323244384,1713839443900,-500.0,0.00025753,2]
[323244386,1713839443909,-500.0,0.00025753,2]
[323244388,1713839443919,-968.74,0.00025753,2]
[323244390,1713839443928,-500.0,0.00025753,2]
[323244392,1713839443937,-500.0,0.00025753,2]
[323244395,1713839443947,-620.3,0.00025753,2]
[323244397,1713839443956,-500.0,0.00025753,2]
[323244398,1713839443965,-621.56,0.00025753,2]
[323244400,1713839443974,-1041.4,0.00025753,2]
[323244402,1713839443983,-363.50867753,0.00025753,2]
[323244404,1713839443992,-500.0,0.00025753,2]
[323244406,1713839444001,-612.02,0.00025753,2]
[323244408,1713839444011,-612.75,0.00025753,2]
[323244411,1713839444020,-334.92248627,0.00025753,2]
[323244412,1713839444029,-500.0,0.00025753,2]
[323244414,1713839444039,-539.37,0.00025753,2]
[323244416,1713839444048,-1802.65,0.00025753,2]
[323244418,1713839444057,-500.0,0.00025753,2]
[323244420,1713839444067,-500.0,0.00025753,2]
[323244422,1713839444076,-500.0,0.00025753,2]
[323244424,1713839444085,-500.0,0.00025753,2]
[323244426,1713839444095,-500.0,0.00025753,2]
[323244428,1713839444104,-549.8,0.00025753,2]
[323244430,1713839444114,-521.89,0.00025753,2]
[323244432,1713839444123,-550.03,0.00025753,2]
[323244434,1713839444131,-500.0,0.00025753,2]
[323244436,1713839444140,-500.0,0.00025753,2]
[323244438,1713839444150,-500.0,0.00025753,2]
[323244440,1713839444159,-629.55,0.00025753,2]
[323244442,1713839444168,-545.56,0.00025753,2]
[323244445,1713839444177,-1417.58,0.00025753,2]
[323244446,1713839444186,-500.0,0.00025753,2]
[323244448,1713839444196,-1815.54,0.00025753,2]
[323244451,1713839444206,-1763.16,0.00025753,2]
[323244452,1713839444215,-500.0,0.00025753,2]
[323244455,1713839444224,-500.0,0.00025753,2]
[323244457,1713839444233,-2362.86,0.00025753,2]
[323244459,1713839444242,-500.0,0.00025753,2]
[323244461,1713839444253,-643.4,0.00025753,2]
[323244463,1713839444264,-3374.35,0.00025753,2]
[323244465,1713839444273,-1027.25,0.00025753,2]
[323244466,1713839444282,-517.77113704,0.00025753,2]
[323244467,1713839444293,-534.71,0.00025753,2]
[323244468,1713839444302,-500.0,0.00025753,2]
[323244469,1713839444310,-500.0,0.00025753,2]
[323244470,1713839444319,-583.45,0.00025753,2]
[323244471,1713839444328,-1572.23,0.00025753,2]
[323244472,1713839444337,-500.0,0.00025753,2]
[323244474,1713839444346,-3148.3,0.00025753,2]
[323244476,1713839444355,-1773.12,0.00025753,2]
[323244478,1713839444364,-500.0,0.00025753,2]
[323244480,1713839444373,-8801.41,0.00025753,2]
[323244481,1713839444385,-771.77,0.00025753,2]
[323244484,1713839444394,-778.86,0.00025753,2]
[323244486,1713839444403,-2087.97,0.00025753,2]
[323244488,1713839444413,-514.65,0.00025753,2]
[323244490,1713839444423,-157.91013316,0.00025813,2]
[323244492,1713839444432,-127907.6499,0.00025833,30]
[323244494,1713839444441,-1348.61137657,0.00025931,2]
[323244496,1713839444450,-1663.43823622,0.00025971,2]
[323244498,1713839444460,-692.71514922,0.00026,2]
[323244500,1713839444469,-500.0,0.00026027,2]
[323244501,1713839444479,-500.0,0.00026027,2]
[323244503,1713839444487,-500.0,0.00026027,2]
[323244505,1713839444496,-508.56,0.00026027,2]
[323244507,1713839444507,-500.0,0.00026027,2]
[323244509,1713839444517,-500.0,0.00026027,2]
[323244511,1713839444526,-500.0,0.00026027,2]
[323244514,1713839444535,-500.0,0.00026027,2]
[323244515,1713839444546,-500.0,0.00026027,2]
[323244518,1713839444555,-500.0,0.00026027,2]
[323244520,1713839444564,-500.0,0.00026027,2]
[323244522,1713839444573,-500.0,0.00026027,2]
[323244533,1713839444674,-1094.07,0.00026027,2]
[323244535,1713839444683,-580.75,0.00026027,2]
[323244537,1713839444692,-500.0,0.00026027,2]
[323244539,1713839444701,-500.0,0.00026027,2]
[323244541,1713839444710,-500.0,0.00026027,2]
[323244543,1713839444720,-968.74,0.00026027,2]
[323244545,1713839444729,-500.0,0.00026027,2]
[323244547,1713839444738,-500.0,0.00026027,2]
[323244549,1713839444747,-620.3,0.00026027,2]
[323244551,1713839444756,-500.0,0.00026027,2]
[323244553,1713839444765,-621.56,0.00026027,2]
[323244555,1713839444774,-1041.4,0.00026027,2]
[323244557,1713839444783,-500.0,0.00026027,2]
[323244559,1713839444793,-612.02,0.00026027,2]
[323244561,1713839444801,-612.75,0.00026027,2]
[323244563,1713839444811,-500.0,0.00026027,2]
[323244565,1713839444820,-539.37,0.00026027,2]
[323244567,1713839444829,-1802.65,0.00026027,2]
[323244569,1713839444838,-622.34590726,0.00026027,2]
[323244571,1713839444847,-500.0,0.00026027,2]
[323244573,1713839444856,-500.0,0.00026027,2]
[323244575,1713839444865,-500.0,0.00026027,2]
[323244577,1713839444874,-500.0,0.00026027,2]
[323244579,1713839444883,-549.8,0.00026027,2]
[323244581,1713839444892,-521.89,0.00026027,2]
[323244583,1713839444902,-550.03,0.00026027,2]
[323244585,1713839444910,-500.0,0.00026027,2]
[323244588,1713839444920,-500.0,0.00026027,2]
[323244589,1713839444929,-500.0,0.00026027,2]
[323244592,1713839444938,-629.55,0.00026027,2]
[323244593,1713839444947,-545.56,0.00026027,2]
[323244596,1713839444957,-1417.58,0.00026027,2]
[323244598,1713839444966,-500.0,0.00026027,2]
[323244600,1713839444975,-1815.54,0.00026027,2]
[323244601,1713839444983,-1763.16,0.00026027,2]
[323244604,1713839444993,-500.0,0.00026027,2]
[323244606,1713839445002,-500.0,0.00026027,2]
[323244608,1713839445011,-2362.86,0.00026027,2]
[323244610,1713839445020,-500.0,0.00026027,2]
[323244612,1713839445029,-643.4,0.00026027,2]
[323244614,1713839445039,-3374.35,0.00026027,2]
[323244616,1713839445048,-1027.25,0.00026027,2]
[323244618,1713839445057,-534.71,0.00026027,2]
[323244620,1713839445066,-500.0,0.00026027,2]
[323244621,1713839445075,-500.0,0.00026027,2]
[323244623,1713839445084,-583.45,0.00026027,2]
[323244626,1713839445093,-1572.23,0.00026027,2]
[323244628,1713839445103,-500.0,0.00026027,2]
[323244629,1713839445113,-3148.3,0.00026027,2]
[323244632,1713839445122,-1773.12,0.00026027,2]
[323244633,1713839445131,-500.0,0.00026027,2]
[323244635,1713839445140,-8801.41,0.00026027,2]
[323244637,1713839445148,-771.77,0.00026027,2]
[323244639,1713839445158,-778.86,0.00026027,2]
[323244641,1713839445167,-2087.97,0.00026027,2]
[323244644,1713839445177,-514.65,0.00026027,2]
[323244646,1713839445186,-150.81901718,0.00026301,2]
[323244648,1713839445195,-500.0,0.00026301,2]
[323244650,1713839445204,-500.0,0.00026301,2]
[323244652,1713839445213,-500.0,0.00026301,2]
[323244654,1713839445222,-508.56,0.00026301,2]
[323244655,1713839445232,-500.0,0.00026301,2]
[323244658,1713839445241,-500.0,0.00026301,2]
[323244659,1713839445250,-500.0,0.00026301,2]
[323244662,1713839445260,-500.0,0.00026301,2]
[323244663,1713839445269,-500.0,0.00026301,2]
[323244665,1713839445279,-500.0,0.00026301,2]
[323244668,1713839445288,-500.0,0.00026301,2]
[323244669,1713839445297,-500.0,0.00026301,2]
[323244672,1713839445306,-1094.07,0.00026301,2]
[323244674,1713839445315,-580.75,0.00026301,2]
[323244675,1713839445324,-500.0,0.00026301,2]
[323244678,1713839445334,-500.0,0.00026301,2]
[323244680,1713839445343,-283.47586801,0.00026301,2]
[323244682,1713839445352,-968.74,0.00026301,2]
[323244684,1713839445361,-500.0,0.00026301,2]
[323244686,1713839445370,-500.0,0.00026301,2]
[323244688,1713839445379,-620.3,0.00026301,2]
[323244690,1713839445388,-500.0,0.00026301,2]
[323244692,1713839445397,-621.56,0.00026301,2]
[323244694,1713839445406,-1041.4,0.00026301,2]
[323244696,1713839445415,-500.0,0.00026301,2]
[323244698,1713839445424,-612.02,0.00026301,2]
[323244700,1713839445432,-612.75,0.00026301,2]
[323244701,1713839445442,-432.55487012,0.00026301,2]
[323244703,1713839445451,-539.37,0.00026301,2]
[323244705,1713839445460,-1802.65,0.00026301,2]
[323244707,1713839445469,-500.0,0.00026301,2]
[323244709,1713839445478,-500.0,0.00026301,2]
[323244712,1713839445488,-500.0,0.00026301,2]
[323244714,1713839445498,-500.0,0.00026301,2]
[323244715,1713839445509,-549.8,0.00026301,2]
[323244717,1713839445518,-521.89,0.00026301,2]
[323244720,1713839445528,-550.03,0.00026301,2]
[323244721,1713839445537,-626.75875366,0.00026301,2]
[323244724,1713839445547,-343.69823091,0.00026301,2]
[323244726,1713839445555,-500.0,0.00026301,2]
[323244728,1713839445564,-629.55,0.00026301,2]
[323244730,1713839445573,-545.56,0.00026301,2]
[323244732,1713839445582,-1417.58,0.00026301,2]
[323244734,1713839445591,-1815.54,0.00026301,2]
[323244736,1713839445601,-500.0,0.00026301,2]
[323244738,1713839445610,-1763.16,0.00026301,2]
[323244739,1713839445619,-500.0,0.00026301,2]
[323244742,1713839445628,-500.0,0.00026301,2]
[323244744,1713839445637,-2362.86,0.00026301,2]
[323244745,1713839445651,-500.0,0.00026301,2]
[323244747,1713839445660,-643.4,0.00026301,2]
[323244750,1713839445669,-3374.35,0.00026301,2]
[323244751,1713839445678,-1027.25,0.00026301,2]
[323244753,1713839445687,-534.71,0.00026301,2]
[323244755,1713839445697,-500.0,0.00026301,2]
[323244758,1713839445707,-500.0,0.00026301,2]
[323244760,1713839445716,-583.45,0.00026301,2]
[323244762,1713839445726,-1572.23,0.00026301,2]
[323244764,1713839445736,-500.0,0.00026301,2]
[323244766,1713839445745,-3148.3,0.00026301,2]
[323244768,1713839445754,-1773.12,0.00026301,2]
[323244770,1713839445763,-500.0,0.00026301,2]
[323244772,1713839445773,-8801.41,0.00026301,2]
[323244774,1713839445782,-771.77,0.00026301,2]
[323244776,1713839445791,-778.86,0.00026301,2]
[323244777,1713839445800,-2087.97,0.00026301,2]
[323244780,1713839445809,-514.65,0.00026301,2]
[323244781,1713839445818,-154.30051212,0.00026383,2]
[323244783,1713839445828,-154.30051212,0.00026419,2]
[323244785,1713839445837,-1663.43823622,0.00026521,2]
[323244787,1713839445846,-163.76753767,0.00026532,2]
[323244789,1713839445856,-500.0,0.00026575,2]
[323244790,1713839445865,-500.0,0.00026575,2]
[323244791,1713839445874,-500.0,0.00026575,2]
[323244792,1713839445883,-508.56,0.00026575,2]
[323244793,1713839445892,-500.0,0.00026575,2]
[323244794,1713839445902,-500.0,0.00026575,2]
[323244795,1713839445911,-500.0,0.00026575,2]
[323244796,1713839445920,-500.0,0.00026575,2]
[323244797,1713839445930,-489.22305924,0.00026575,2]
[323244798,1713839445939,-500.0,0.00026575,2]
[323244799,1713839445950,-500.0,0.00026575,2]
[323244800,1713839445959,-500.0,0.00026575,2]
[323244801,1713839445969,-1094.07,0.00026575,2]
[323244802,1713839445978,-580.75,0.00026575,2]
[323244803,1713839445987,-500.0,0.00026575,2]
[323244804,1713839445997,-500.0,0.00026575,2]
[323244805,1713839446008,-968.74,0.00026575,2]
[323244806,1713839446017,-500.0,0.00026575,2]
[323244807,1713839446025,-500.0,0.00026575,2]
[323244808,1713839446034,-620.3,0.00026575,2]
[323244809,1713839446044,-621.56,0.00026575,2]
[323244810,1713839446054,-500.0,0.00026575,2]
[323244811,1713839446063,-1041.4,0.00026575,2]
[323244812,1713839446073,-500.0,0.00026575,2]
[323244813,1713839446082,-612.02,0.00026575,2]
[323244814,1713839446092,-612.75,0.00026575,2]
[323244815,1713839446101,-539.37,0.00026575,2]
[323244816,1713839446110,-1802.65,0.00026575,2]
[323244817,1713839446120,-500.0,0.00026575,2]
[323244818,1713839446129,-500.0,0.00026575,2]
[323244819,1713839446138,-500.0,0.00026575,2]
[323244820,1713839446148,-500.0,0.00026575,2]
[323244821,1713839446157,-549.8,0.00026575,2]
[323244822,1713839446166,-521.89,0.00026575,2]
[323244823,1713839446176,-550.03,0.00026575,2]
[323244824,1713839446185,-500.0,0.00026575,2]
[323244825,1713839446194,-629.55,0.00026575,2]
[323244826,1713839446204,-545.56,0.00026575,2]
[323244827,1713839446214,-1417.58,0.00026575,2]
[323244828,1713839446223,-1815.54,0.00026575,2]
[323244829,1713839446232,-500.0,0.00026575,2]
[323244830,1713839446241,-1763.16,0.00026575,2]
[323244832,1713839446251,-500.0,0.00026575,2]
[323244833,1713839446262,-500.0,0.00026575,2]
[323244834,1713839446272,-2362.86,0.00026575,2]
[323244835,1713839446281,-500.0,0.00026575,2]
[323244836,1713839446290,-643.4,0.00026575,2]
[323244837,1713839446299,-3374.35,0.00026575,2]
[323244838,1713839446309,-1027.25,0.00026575,2]
[323244839,1713839446318,-534.71,0.00026575,2]
[323244840,1713839446327,-500.0,0.00026575,2]
[323244841,1713839446336,-500.0,0.00026575,2]
[323244842,1713839446346,-583.45,0.00026575,2]
[323244843,1713839446355,-1572.23,0.00026575,2]
[323244844,1713839446365,-500.0,0.00026575,2]
[323244845,1713839446374,-3148.3,0.00026575,2]
[323244846,1713839446383,-1773.12,0.00026575,2]
[323244847,1713839446392,-500.0,0.00026575,2]
[323244848,1713839446401,-8801.41,0.00026575,2]
[323244849,1713839446411,-771.77,0.00026575,2]
[323244850,1713839446424,-778.86,0.00026575,2]
[323244851,1713839446435,-2087.97,0.00026575,2]
[323244852,1713839446444,-514.65,0.00026575,2]
[323244853,1713839446454,-22459.21848333,0.0002666,2]
[323244855,1713839446464,-3162.0,0.00026693,2]
[323244857,1713839446473,-301.63803436,0.00026743,4]
[323244859,1713839446483,-500.0,0.00026849,2]
[323244861,1713839446493,-500.0,0.00026849,2]
[323244862,1713839446504,-500.0,0.00026849,2]
[323244863,1713839446514,-508.56,0.00026849,2]
[323244864,1713839446523,-500.0,0.00026849,2]
[323244865,1713839446532,-500.0,0.00026849,2]
[323244866,1713839446542,-500.0,0.00026849,2]
[323244868,1713839446552,-500.0,0.00026849,2]
[323244869,1713839446563,-500.0,0.00026849,2]
[323244870,1713839446572,-500.0,0.00026849,2]
[323244871,1713839446582,-500.0,0.00026849,2]
[323244872,1713839446591,-1094.07,0.00026849,2]
[323244873,1713839446602,-580.75,0.00026849,2]
[323244875,1713839446612,-500.0,0.00026849,2]
[323244876,1713839446622,-500.0,0.00026849,2]
[323244877,1713839446631,-968.74,0.00026849,2]
[323244878,1713839446643,-500.0,0.00026849,2]
[323244879,1713839446654,-500.0,0.00026849,2]
[323244880,1713839446663,-620.3,0.00026849,2]
[323244881,1713839446673,-621.56,0.00026849,2]
[323244882,1713839446683,-500.0,0.00026849,2]
[323244883,1713839446693,-1041.4,0.00026849,2]
[323244884,1713839446703,-500.0,0.00026849,2]
[323244885,1713839446713,-612.02,0.00026849,2]
[323244886,1713839446725,-612.75,0.00026849,2]
[323244887,1713839446735,-539.37,0.00026849,2]
[323244888,1713839446744,-1802.65,0.00026849,2]
[323244889,1713839446754,-500.0,0.00026849,2]
[323244890,1713839446764,-500.0,0.00026849,2]
[323244891,1713839446774,-500.0,0.00026849,2]